fUST/lending_fUST_20260525
["ID","MTS","AMOUNT","RATE_DAILY","PERIOD"]
[422934142,1779651041000,-500.0,0.00011506,2]
[422934143,1779651041000,-500.0,0.00011506,2]
[422934145,1779651041000,-500.0,0.00011506,2]
[422934144,1779651041000,-500.0,0.00011506,2]
[422934148,1779651041000,-500.0,0.00011587,2]
[422934146,1779651041000,-3294.84,0.00011506,2]
[422934147,1779651041000,-786.02,0.00011506,2]
[422934150,1779651041000,-500.0,0.00011587,2]
[422934161,1779651041000,-500.0,0.00011861,2]
[422934168,1779651041000,-500.0,0.00012054,2]
[422934160,1779651041000,-786.02,0.0001178,2]
[422934151,1779651041000,-500.0,0.00011587,2]
[422934152,1779651041000,-500.0,0.00011587,2]
[422934153,1779651041000,-559.11,0.00011587,2]
[422934154,1779651041000,-296.05377264,0.00011755,2]
[422934158,1779651041000,-270.39,0.0001178,2]
[422934157,1779651041000,-500.0,0.0001178,2]
[422934155,1779651041000,-500.0,0.0001178,2]
[422934156,1779651041000,-500.0,0.0001178,2]
[422934163,1779651041000,-500.0,0.00011861,2]
[422934173,1779651041000,-500.0,0.00012135,2]
[422934174,1779651041000,-158.46332235,0.00012135,2]
[422934162,1779651041000,-500.0,0.00011861,2]
[422934165,1779651041000,-500.0,0.00011861,2]
[422934159,1779651041000,-3294.84,0.0001178,2]
[422934192,1779651041000,-500.0,0.00012876,2]
[422934258,1779651041000,-500.0,0.00017179,2]
[422934204,1779651041000,-153.77,0.00013424,2]
[422934234,1779651041000,-164.09092,0.00015686,2]
[422934236,1779651041000,-164.09092,0.00015686,2]
[422934237,1779651041000,-164.09092,0.00015686,2]
[422934227,1779651041000,-164.09092,0.00015686,2]
[422934238,1779651041000,-374.42094775,0.00015755,2]
[422934239,1779651041000,-902.12660391,0.00016,2]
[422934242,1779651041000,-301.0,0.00016219,3]
[422934251,1779651041000,-500.0,0.00017179,2]
[422934240,1779651041000,-180.599,0.0001609,2]
[422934241,1779651041000,-720.0,0.00016148,2]
[422934243,1779651041000,-152.0,0.00016428,7]
[422934250,1779651041000,-500.0,0.00017179,2]
[422934245,1779651041000,-52029.6669,0.00016541,7]
[422934244,1779651041000,-200.0,0.00016438,2]
[422934249,1779651041000,-500.0,0.00017179,2]
[422934248,1779651041000,-500.0,0.00017179,2]
[422934246,1779651041000,-161.73758927,0.00017,7]
[422934247,1779651041000,-766.70313116,0.00017,7]
[422934252,1779651041000,-500.0,0.00017179,2]
[422934255,1779651041000,-500.0,0.00017179,2]
[422934254,1779651041000,-500.0,0.00017179,2]
[422934253,1779651041000,-500.0,0.00017179,2]
[422934259,1779651041000,-500.0,0.00017179,2]
[422934262,1779651041000,-500.0,0.00017226,2]
[422934261,1779651041000,-500.0,0.00017179,2]
[422934256,1779651041000,-500.0,0.00017179,2]
[422934260,1779651041000,-500.0,0.00017179,2]
[422934235,1779651041000,-164.09092,0.00015686,2]
[422934233,1779651041000,-164.09092,0.00015686,2]
[422934257,1779651041000,-500.0,0.00017179,2]
[422934230,1779651041000,-164.09092,0.00015686,2]
[422934232,1779651041000,-164.09092,0.00015686,2]
[422934200,1779651041000,-500.0,0.0001315,2]
[422934203,1779651041000,-500.0,0.00013253,2]
[422934202,1779651041000,-786.02,0.0001315,2]
[422934205,1779651041000,-3294.84,0.00013424,2]
[422934206,1779651041000,-786.02,0.00013424,2]
[422934211,1779651041000,-335.23736019,0.00013755,2]
[422934210,1779651041000,-1000.0,0.00013699,2]
[422934208,1779651041000,-3294.84,0.00013698,2]
[422934207,1779651041000,-210.40133019,0.00013599,2]
[422934212,1779651041000,-3294.84,0.00013972,2]
[422934209,1779651041000,-786.02,0.00013698,2]
[422934214,1779651041000,-42068.93602929,0.00014,2]
[422934216,1779651041000,-786.02,0.00014246,2]
[422934201,1779651041000,-3294.84,0.0001315,2]
[422934225,1779651041000,-443.0,0.00015636,2]
[422934224,1779651041000,-18876.14569091,0.00015,2]
[422934228,1779651041000,-164.09092,0.00015686,2]
[422934229,1779651041000,-164.09092,0.00015686,2]
[422934222,1779651041000,-786.23,0.0001452,2]
[422934220,1779651041000,-160.0,0.00014393,2]
[422934221,1779651041000,-3294.98000001,0.0001452,2]
[422934231,1779651041000,-164.09092,0.00015686,2]
[422934223,1779651041000,-600.0,0.0001468,2]
[422934215,1779651041000,-3294.84,0.00014246,2]
[422934219,1779651041000,-160.0,0.00014383,2]
[422934213,1779651041000,-786.02,0.00013972,2]
[422934226,1779651041000,-185.0,0.00015636,2]
[422934217,1779651041000,-766.70313116,0.00014382,2]
[422934218,1779651041000,-160.0,0.00014383,2]
[422934291,1779651042000,-500.0,0.00017453,2]
[422934294,1779651042000,-500.0,0.00017453,2]
[422934300,1779651042000,-500.0,0.00017453,2]
[422934289,1779651042000,-500.0,0.00017453,2]
[422934295,1779651042000,-403.13321532,0.00017453,2]
[422934293,1779651042000,-500.0,0.00017453,2]
[422934299,1779651042000,-500.0,0.00017453,2]
[422934297,1779651042000,-500.0,0.00017453,2]
[422934298,1779651042000,-500.0,0.00017453,2]
[422934296,1779651042000,-500.0,0.00017453,2]
[422934292,1779651042000,-500.0,0.00017453,2]
[422934314,1779651042000,-173.04,0.00017728,2]
[422934302,1779651042000,-161.73758927,0.00017473,2]
[422934306,1779651042000,-173.04,0.00017721,2]
[422934305,1779651042000,-173.04,0.00017714,2]
[422934303,1779651042000,-173.04,0.000177,2]
[422934301,1779651042000,-361.15243636,0.00017453,2]
[422934308,1779651042000,-500.0,0.00017727,2]
[422934310,1779651042000,-500.0,0.00017727,2]
[422934307,1779651042000,-500.0,0.00017727,2]
[422934309,1779651042000,-500.0,0.00017727,2]
[422934315,1779651042000,-173.04,0.00017734,2]
[422934312,1779651042000,-500.0,0.00017727,2]
[422934304,1779651042000,-173.04,0.00017707,2]
[422934290,1779651042000,-500.0,0.00017453,2]
[422934280,1779651042000,-500.0,0.00017226,2]
[422934288,1779651042000,-564.29047145,0.00017226,2]
[422934313,1779651042000,-500.0,0.00017727,2]
[422934265,1779651042000,-500.0,0.00017226,2]
[422934266,1779651042000,-500.0,0.00017226,2]
[422934263,1779651042000,-500.0,0.00017226,2]
[422934274,1779651042000,-500.0,0.00017226,2]
[422934276,1779651042000,-495.53624522,0.00017226,2]
[422934264,1779651042000,-500.0,0.00017226,2]
[422934268,1779651042000,-500.0,0.00017226,2]
[422934272,1779651042000,-500.0,0.00017226,2]
[422934275,1779651042000,-500.0,0.00017226,2]
[422934270,1779651042000,-245.10192688,0.00017226,2]
[422934267,1779651042000,-171.3588001,0.00017226,2]
[422934271,1779651042000,-500.0,0.00017226,2]
[422934273,1779651042000,-500.0,0.00017226,2]
[422934277,1779651042000,-283.65627377,0.00017226,2]
[422934279,1779651042000,-500.0,0.00017226,2]
[422934278,1779651042000,-500.0,0.00017226,2]
[422934281,1779651042000,-161.84857263,0.00017226,2]
[422934284,1779651042000,-500.0,0.00017226,2]
[422934287,1779651042000,-500.0,0.00017226,2]
[422934282,1779651042000,-500.0,0.00017226,2]
[422934283,1779651042000,-500.0,0.00017226,2]
[422934285,1779651042000,-500.0,0.00017226,2]
[422934286,1779651042000,-500.0,0.00017226,2]
[422934269,1779651042000,-500.0,0.00017226,2]
[422934311,1779651042000,-500.0,0.00017727,2]
[422934316,1779651042000,-173.04,0.00017741,2]
[422934354,1779651042000,-500.0,0.00018823,2]
[422934346,1779651042000,-164.28442962,0.000184,2]
[422934345,1779651042000,-479.64,0.00018275,2]
[422934347,1779651042000,-164.28442962,0.000185,2]
[422934353,1779651042000,-164.28442962,0.000187,2]
[422934350,1779651042000,-3713.23,0.0001863,2]
[422934349,1779651042000,-151.73,0.00018549,2]
[422934352,1779651042000,-185.0,0.00018636,2]
[422934351,1779651042000,-443.0,0.00018636,2]
[422934348,1779651042000,-500.0,0.00018549,2]
[422934357,1779651042000,-221.53141358,0.00019178,2]
[422934359,1779651042000,-3713.23,0.00019178,2]
[422934367,1779651042000,-3713.23,0.00019452,2]
[422934365,1779651042000,-500.0,0.00019371,2]
[422934376,1779651042000,-156.0,0.00019568,120]
[422934369,1779651042000,-1560.00006057,0.00019557,13]
[422934374,1779651042000,-504.0,0.00019568,120]
[422934378,1779651042000,-500.0,0.00019569,2]
[422934368,1779651042000,-1000.0,0.00019539,2]
[422934371,1779651042000,-206.51175383,0.00019568,120]
[422934379,1779651042000,-500.0,0.00019569,2]
[422934370,1779651042000,-829.68329489,0.00019568,120]
[422934327,1779651042000,-173.04,0.00017803,2]
[422934356,1779651042000,-500.0,0.00019097,2]
[422934355,1779651042000,-3713.23,0.00018904,2]
[422934362,1779651042000,-549.83211418,0.00019242,2]
[422934340,1779651042000,-164.28442962,0.000182,2]
[422934325,1779651042000,-173.04,0.0001779,2]
[422934344,1779651042000,-500.0,0.00018275,2]
[422934326,1779651042000,-173.04,0.00017797,2]
[422934328,1779651042000,-171.86059238,0.00017808,2]
[422934318,1779651042000,-413.6045353,0.00017755,2]
[422934317,1779651042000,-173.04,0.00017748,2]
[422934319,1779651042000,-173.04,0.00017755,2]
[422934322,1779651042000,-173.04,0.00017769,2]
[422934320,1779651042000,-173.04,0.00017762,2]
[422934324,1779651042000,-173.04,0.00017783,2]
[422934323,1779651042000,-173.04,0.00017776,2]
[422934321,1779651042000,-864.0,0.00017763,2]
[422934336,1779651042000,-323.74,0.00018001,2]
[422934333,1779651042000,-500.0,0.00018001,2]
[422934332,1779651042000,-164.28442962,0.00018,2]
[422934331,1779651042000,-173.04,0.00017824,2]
[422934338,1779651042000,-500.0,0.00018001,2]
[422934339,1779651042000,-500.0,0.00018001,2]
[422934335,1779651042000,-500.0,0.00018001,2]
[422934342,1779651042000,-282.6,0.00018275,2]
[422934341,1779651042000,-500.0,0.00018275,2]
[422934337,1779651042000,-163.42,0.00018001,2]
[422934329,1779651042000,-173.04,0.0001781,2]
[422934330,1779651042000,-173.04,0.00017817,2]
[422934447,1779651043000,-151.0,0.00019598,2]
[422934445,1779651043000,-151.0,0.00019598,2]
[422934428,1779651043000,-290.94,0.00019598,2]
[422934461,1779651043000,-151.0,0.00019598,2]
[422934443,1779651043000,-151.0,0.00019598,2]
[422934441,1779651043000,-151.0,0.00019598,2]
[422934438,1779651043000,-290.94,0.00019598,2]
[422934435,1779651043000,-290.94,0.00019598,2]
[422934432,1779651043000,-290.94,0.00019598,2]
[422934434,1779651043000,-290.94,0.00019598,2]
[422934449,1779651043000,-157.8,0.00019598,2]
[422934437,1779651043000,-290.94,0.00019598,2]
[422934451,1779651043000,-151.0,0.00019598,2]
[422934486,1779651043000,-181.89593,0.00019598,2]
[422934459,1779651043000,-151.0,0.00019598,2]
[422934465,1779651043000,-151.0,0.00019598,2]
[422934457,1779651043000,-151.0,0.00019598,2]
[422934455,1779651043000,-151.0,0.00019598,2]
[422934463,1779651043000,-151.0,0.00019598,2]
[422934480,1779651043000,-151.0,0.00019598,2]
[422934481,1779651043000,-151.0,0.00019598,2]
[422934483,1779651043000,-287.623504,0.00019598,2]
[422934479,1779651043000,-151.0,0.00019598,2]
[422934482,1779651043000,-151.0,0.00019598,2]
[422934484,1779651043000,-181.89593,0.00019598,2]
[422934485,1779651043000,-181.89593,0.00019598,2]
[422934433,1779651043000,-290.94,0.00019598,2]
[422934453,1779651043000,-151.0,0.00019598,2]
[422934431,1779651043000,-290.94,0.00019598,2]
[422934407,1779651043000,-151.0,0.00019598,2]
[422934430,1779651043000,-290.94,0.00019598,2]
[422934467,1779651043000,-151.0,0.00019598,2]
[422934404,1779651043000,-151.0,0.00019598,2]
[422934403,1779651043000,-151.0,0.00019598,2]
[422934406,1779651043000,-151.0,0.00019598,2]
[422934405,1779651043000,-295.272471,0.00019598,2]
[422934408,1779651043000,-151.0,0.00019598,2]
[422934409,1779651043000,-151.0,0.00019598,2]
[422934413,1779651043000,-151.0,0.00019598,2]
[422934411,1779651043000,-151.0,0.00019598,2]
[422934414,1779651043000,-151.0,0.00019598,2]
[422934412,1779651043000,-151.0,0.00019598,2]
[422934410,1779651043000,-151.0,0.00019598,2]
[422934415,1779651043000,-205.783596,0.00019598,2]
[422934436,1779651043000,-290.94,0.00019598,2]
[422934417,1779651043000,-151.0,0.00019598,2]
[422934419,1779651043000,-290.94,0.00019598,2]
[422934418,1779651043000,-155.221944,0.00019598,2]
[422934426,1779651043000,-290.94,0.00019598,2]
[422934420,1779651043000,-290.94,0.00019598,2]
[422934427,1779651043000,-290.94,0.00019598,2]
[422934421,1779651043000,-290.94,0.00019598,2]
[422934423,1779651043000,-290.94,0.00019598,2]
[422934425,1779651043000,-290.94,0.00019598,2]
[422934424,1779651043000,-290.94,0.00019598,2]
[422934422,1779651043000,-290.94,0.00019598,2]
[422934429,1779651043000,-290.94,0.00019598,2]
[422934439,1779651043000,-151.0,0.00019598,2]
[422934440,1779651043000,-151.0,0.00019598,2]
[422934416,1779651043000,-151.0,0.00019598,2]
[422934471,1779651043000,-151.0,0.00019598,2]
[422934506,1779651043000,-181.89593,0.00019598,2]
[422934469,1779651043000,-151.0,0.00019598,2]
[422934519,1779651043000,-274.259023,0.00019598,2]
[422934521,1779651043000,-274.259023,0.00019598,2]
[422934518,1779651043000,-274.259023,0.00019598,2]
[422934515,1779651043000,-274.259023,0.00019598,2]
[422934520,1779651043000,-274.259023,0.00019598,2]
[422934517,1779651043000,-274.259023,0.00019598,2]
[422934524,1779651043000,-274.259023,0.00019598,2]
[422934535,1779651043000,-419.424002,0.00019598,2]
[422934534,1779651043000,-419.424002,0.00019598,2]
[422934525,1779651043000,-151.0,0.00019598,2]
[422934523,1779651043000,-151.0,0.00019598,2]
[422934528,1779651043000,-151.0,0.00019598,2]
[422934527,1779651043000,-151.0,0.00019598,2]
[422934526,1779651043000,-274.25903,0.00019598,2]
[422934530,1779651043000,-301.484022,0.00019598,2]
[422934533,1779651043000,-301.484022,0.00019598,2]
[422934532,1779651043000,-301.484022,0.00019598,2]
[422934531,1779651043000,-301.484022,0.00019598,2]
[422934529,1779651043000,-218.100046,0.00019598,2]
[422934536,1779651043000,-419.424002,0.00019598,2]
[422934538,1779651043000,-419.424002,0.00019598,2]
[422934544,1779651043000,-387.656478,0.00019598,2]
[422934540,1779651043000,-293.99107,0.00019598,2]
[422934541,1779651043000,-293.99107,0.00019598,2]
[422934539,1779651043000,-293.99107,0.00019598,2]
[422934537,1779651043000,-293.99107,0.00019598,2]
[422934473,1779651043000,-163.845157,0.00019598,2]
[422934516,1779651043000,-274.259023,0.00019598,2]
[422934511,1779651043000,-274.259023,0.00019598,2]
[422934543,1779651043000,-387.656478,0.00019598,2]
[422934513,1779651043000,-274.259023,0.00019598,2]
[422934514,1779651043000,-181.89594,0.00019598,2]
[422934477,1779651043000,-151.0,0.00019598,2]
[422934487,1779651043000,-181.89593,0.00019598,2]
[422934491,1779651043000,-274.259023,0.00019598,2]
[422934489,1779651043000,-181.89593,0.00019598,2]
[422934490,1779651043000,-181.89593,0.00019598,2]
[422934495,1779651043000,-181.89593,0.00019598,2]
[422934498,1779651043000,-181.89593,0.00019598,2]
[422934488,1779651043000,-181.89593,0.00019598,2]
[422934492,1779651043000,-181.89593,0.00019598,2]
[422934497,1779651043000,-181.89593,0.00019598,2]
[422934493,1779651043000,-181.89593,0.00019598,2]
[422934494,1779651043000,-274.259023,0.00019598,2]
[422934496,1779651043000,-274.259023,0.00019598,2]
[422934475,1779651043000,-151.0,0.00019598,2]
[422934500,1779651043000,-274.259023,0.00019598,2]
[422934510,1779651043000,-181.89593,0.00019598,2]
[422934512,1779651043000,-181.89593,0.00019598,2]
[422934504,1779651043000,-181.89593,0.00019598,2]
[422934508,1779651043000,-181.89593,0.00019598,2]
[422934505,1779651043000,-274.259023,0.00019598,2]
[422934507,1779651043000,-274.259023,0.00019598,2]
[422934522,1779651043000,-151.0,0.00019598,2]
[422934509,1779651043000,-274.259023,0.00019598,2]
[422934503,1779651043000,-181.89593,0.00019598,2]
[422934502,1779651043000,-274.259023,0.00019598,2]
[422934501,1779651043000,-181.89593,0.00019598,2]
[422934499,1779651043000,-274.259023,0.00019598,2]
[422934542,1779651043000,-387.656478,0.00019598,2]
[422934581,1779651044000,-293.99107,0.00019622,2]
[422934579,1779651044000,-419.424002,0.00019622,2]
[422934585,1779651044000,-293.99107,0.00019622,2]
[422934580,1779651044000,-419.424002,0.00019622,2]
[422934577,1779651044000,-419.424002,0.00019622,2]
[422934588,1779651044000,-419.424002,0.00019622,2]
[422934578,1779651044000,-419.424002,0.00019622,2]
[422934568,1779651044000,-301.484022,0.00019622,2]
[422934586,1779651044000,-419.424002,0.00019622,2]
[422934575,1779651044000,-419.424002,0.00019622,2]
[422934587,1779651044000,-293.99107,0.00019622,2]
[422934576,1779651044000,-419.424002,0.00019622,2]
[422934598,1779651044000,-293.99107,0.00019622,2]
[422934584,1779651044000,-419.424002,0.00019622,2]
[422934582,1779651044000,-419.424002,0.00019622,2]
[422934591,1779651044000,-293.99107,0.00019622,2]
[422934589,1779651044000,-293.99107,0.00019622,2]
[422934594,1779651044000,-419.4240111,0.00019622,2]
[422934592,1779651044000,-419.424002,0.00019622,2]
[422934599,1779651044000,-293.99107,0.00019622,2]
[422934597,1779651044000,-293.99107,0.00019622,2]
[422934595,1779651044000,-293.99107,0.00019622,2]
[422934590,1779651044000,-419.424002,0.00019622,2]
[422934571,1779651044000,-301.4840197,0.00019622,2]
[422934593,1779651044000,-293.99107,0.00019622,2]
[422934583,1779651044000,-293.99107,0.00019622,2]
[422934572,1779651044000,-419.424002,0.00019622,2]
[422934557,1779651044000,-301.484022,0.00019622,2]
[422934574,1779651044000,-419.424002,0.00019622,2]
[422934596,1779651044000,-293.99107,0.00019622,2]
[422934545,1779651044000,-387.656478,0.00019598,2]
[422934548,1779651044000,-155.0,0.00019598,120]
[422934547,1779651044000,-170.0,0.00019598,120]
[422934546,1779651044000,-154.0,0.00019598,120]
[422934550,1779651044000,-766.70313116,0.000196,10]
[422934562,1779651044000,-301.484022,0.00019622,2]
[422934551,1779651044000,-161.73758927,0.000196,7]
[422934561,1779651044000,-301.484022,0.00019622,2]
[422934560,1779651044000,-301.484022,0.00019622,2]
[422934556,1779651044000,-301.484022,0.00019622,2]
[422934549,1779651044000,-4021.0,0.00019598,120]
[422934552,1779651044000,-766.70313116,0.000196,7]
[422934553,1779651044000,-1000.0,0.0001962,5]
[422934558,1779651044000,-301.484022,0.00019622,2]
[422934555,1779651044000,-165.0,0.00019622,120]
[422934559,1779651044000,-301.484022,0.00019622,2]
[422934554,1779651044000,-154.0,0.00019622,120]
[422934565,1779651044000,-301.484022,0.00019622,2]
[422934563,1779651044000,-301.484022,0.00019622,2]
[422934564,1779651044000,-301.484022,0.00019622,2]
[422934566,1779651044000,-301.484022,0.00019622,2]
[422934567,1779651044000,-301.484022,0.00019622,2]
[422934570,1779651044000,-301.484022,0.00019622,2]
[422934569,1779651044000,-301.484022,0.00019622,2]
[422934573,1779651044000,-419.424002,0.00019622,2]
[422934600,1779651044000,-293.99107,0.00019622,2]
[422934608,1779651044000,-387.656478,0.00019622,2]
[422934611,1779651044000,-387.656478,0.00019622,2]
[422934633,1779651044000,-1561.574316,0.00019622,2]
[422934635,1779651044000,-1561.574316,0.00019622,2]
[422934634,1779651044000,-1561.574316,0.00019622,2]
[422934631,1779651044000,-1561.574316,0.00019622,2]
[422934630,1779651044000,-269.875872,0.00019622,2]
[422934636,1779651044000,-1561.574316,0.00019622,2]
[422934639,1779651044000,-1561.574316,0.00019622,2]
[422934640,1779651044000,-1561.574316,0.00019622,2]
[422934641,1779651044000,-1561.574316,0.00019622,2]
[422934650,1779651044000,-494.653931,0.00019622,2]
[422934642,1779651044000,-1561.574316,0.00019622,2]
[422934644,1779651044000,-494.653931,0.00019622,2]
[422934646,1779651044000,-494.653931,0.00019622,2]
[422934645,1779651044000,-494.653931,0.00019622,2]
[422934643,1779651044000,-1561.574322,0.00019622,2]
[422934649,1779651044000,-233.185689,0.00019622,2]
[422934647,1779651044000,-494.653931,0.00019622,2]
[422934648,1779651044000,-494.653931,0.00019622,2]
[422934653,1779651044000,-233.185689,0.00019622,2]
[422934652,1779651044000,-494.653931,0.00019622,2]
[422934656,1779651044000,-494.653931,0.00019622,2]
[422934654,1779651044000,-494.653931,0.00019622,2]
[422934657,1779651044000,-233.185689,0.00019622,2]
[422934655,1779651044000,-233.185689,0.00019622,2]
[422934658,1779651044000,-494.653931,0.00019622,2]
[422934632,1779651044000,-1561.574316,0.00019622,2]
[422934638,1779651044000,-1561.574316,0.00019622,2]
[422934651,1779651044000,-233.185689,0.00019622,2]
[422934628,1779651044000,-1561.574316,0.00019622,2]
[422934637,1779651044000,-1561.574316,0.00019622,2]
[422934609,1779651044000,-387.656478,0.00019622,2]
[422934610,1779651044000,-387.656478,0.00019622,2]
[422934607,1779651044000,-387.656478,0.00019622,2]
[422934601,1779651044000,-293.99107,0.00019622,2]
[422934602,1779651044000,-293.99107,0.00019622,2]
[422934603,1779651044000,-293.991067,0.00019622,2]
[422934605,1779651044000,-387.656478,0.00019622,2]
[422934606,1779651044000,-387.656478,0.00019622,2]
[422934612,1779651044000,-387.656478,0.00019622,2]
[422934614,1779651044000,-387.656478,0.00019622,2]
[422934624,1779651044000,-1561.574316,0.00019622,2]
[422934625,1779651044000,-1561.574316,0.00019622,2]
[422934604,1779651044000,-387.656478,0.00019622,2]
[422934629,1779651044000,-1561.574316,0.00019622,2]
[422934626,1779651044000,-1561.574316,0.00019622,2]
[422934613,1779651044000,-387.656478,0.00019622,2]
[422934627,1779651044000,-1561.574316,0.00019622,2]
[422934622,1779651044000,-301.220321,0.00019622,2]
[422934618,1779651044000,-387.656478,0.00019622,2]
[422934616,1779651044000,-387.656478,0.00019622,2]
[422934619,1779651044000,-387.656478,0.00019622,2]
[422934621,1779651044000,-151.0,0.00019622,2]
[422934617,1779651044000,-387.656478,0.00019622,2]
[422934623,1779651044000,-1561.574316,0.00019622,2]
[422934615,1779651044000,-387.656478,0.00019622,2]
[422934620,1779651044000,-151.0,0.00019622,2]
[422934698,1779651045000,-327.796361,0.00019622,2]
[422934713,1779651045000,-234.349853,0.00019622,2]
[422934703,1779651045000,-327.796361,0.00019622,2]
[422934696,1779651045000,-234.349853,0.00019622,2]
[422934695,1779651045000,-327.796361,0.00019622,2]
[422934699,1779651045000,-234.349853,0.00019622,2]
[422934694,1779651045000,-234.349853,0.00019622,2]
[422934701,1779651045000,-234.349853,0.00019622,2]
[422934688,1779651045000,-234.349853,0.00019622,2]
[422934700,1779651045000,-327.796361,0.00019622,2]
[422934714,1779651045000,-172.626031,0.00019622,2]
[422934693,1779651045000,-327.796361,0.00019622,2]
[422934704,1779651045000,-234.349853,0.00019622,2]
[422934718,1779651045000,-327.796361,0.00019622,2]
[422934715,1779651045000,-327.796361,0.00019622,2]
[422934706,1779651045000,-234.349853,0.00019622,2]
[422934702,1779651045000,-327.796361,0.00019622,2]
[422934705,1779651045000,-327.796361,0.00019622,2]
[422934708,1779651045000,-234.349853,0.00019622,2]
[422934707,1779651045000,-327.796361,0.00019622,2]
[422934712,1779651045000,-172.626031,0.00019622,2]
[422934710,1779651045000,-327.796361,0.00019622,2]
[422934711,1779651045000,-234.349853,0.00019622,2]
[422934716,1779651045000,-234.349853,0.00019622,2]
[422934721,1779651045000,-327.796361,0.00019622,2]
[422934722,1779651045000,-234.349853,0.00019622,2]
[422934691,1779651045000,-327.796361,0.00019622,2]
[422934709,1779651045000,-327.796361,0.00019622,2]
[422934690,1779651045000,-234.349853,0.00019622,2]
[422934660,1779651045000,-494.653931,0.00019622,2]
[422934686,1779651045000,-234.349853,0.00019622,2]
[422934663,1779651045000,-233.185689,0.00019622,2]
[422934719,1779651045000,-234.349853,0.00019622,2]
[422934661,1779651045000,-233.185689,0.00019622,2]
[422934662,1779651045000,-494.653931,0.00019622,2]
[422934659,1779651045000,-233.185689,0.00019622,2]
[422934675,1779651045000,-494.653931,0.00019622,2]
[422934665,1779651045000,-233.185689,0.00019622,2]
[422934666,1779651045000,-233.185689,0.00019622,2]
[422934664,1779651045000,-494.653931,0.00019622,2]
[422934667,1779651045000,-494.653931,0.00019622,2]
[422934668,1779651045000,-233.185689,0.00019622,2]
[422934669,1779651045000,-494.653931,0.00019622,2]
[422934673,1779651045000,-494.653931,0.00019622,2]
[422934689,1779651045000,-327.796361,0.00019622,2]
[422934670,1779651045000,-233.185689,0.00019622,2]
[422934671,1779651045000,-494.653931,0.00019622,2]
[422934674,1779651045000,-233.185689,0.00019622,2]
[422934677,1779651045000,-494.653931,0.00019622,2]
[422934687,1779651045000,-327.796361,0.00019622,2]
[422934676,1779651045000,-233.185689,0.00019622,2]
[422934678,1779651045000,-233.185689,0.00019622,2]
[422934680,1779651045000,-233.185689,0.00019622,2]
[422934681,1779651045000,-233.185689,0.00019622,2]
[422934682,1779651045000,-233.185689,0.00019622,2]
[422934685,1779651045000,-327.796361,0.00019622,2]
[422934684,1779651045000,-234.349853,0.00019622,2]
[422934679,1779651045000,-494.653938,0.00019622,2]
[422934683,1779651045000,-233.185685,0.00019622,2]
[422934672,1779651045000,-233.185689,0.00019622,2]
[422934720,1779651045000,-172.626031,0.00019622,2]
[422934692,1779651045000,-234.349853,0.00019622,2]
[422934725,1779651045000,-234.349853,0.00019622,2]
[422934755,1779651045000,-349.234525,0.00019622,2]
[422934763,1779651045000,-349.234525,0.00019622,2]
[422934753,1779651045000,-349.234525,0.00019622,2]
[422934761,1779651045000,-349.234525,0.00019622,2]
[422934759,1779651045000,-349.234525,0.00019622,2]
[422934756,1779651045000,-349.234525,0.00019622,2]